[Event "Mitropa Cup Open 2024"]
[Site "Apolda"]
[Date "2024.02.18"]
[Round "4.20"]
[White "Decuigniere, Tom"]
[Black "Novosel, Lovro"]
[Result "0-1"]
[ECO "E06"]
[WhiteElo "2401"]
[BlackElo "2373"]
[Annotator "TA"]
[PlyCount "102"]
[EventDate "2024.02.15"]
[EventType "team-tourn"]
[EventCountry "GER"]
[SourceTitle "playchess.com"]
[Source "ChessBase"]
[SourceQuality "1"]
[WhiteTeam "France"]
[BlackTeam "Croatia"]
[WhiteTeamCountry "FRA"]
[BlackTeamCountry "CRO"]
[TimeControl "40/5400+30:1800+30"]

{[%evp 12,102,16,14,19,33,36,27,37,34,29,44,42,25,31,29,28,17,27,8,18,0,16,0,0,-37,-33,-33,-40,-61,-27,-94,-69,-86,-92,-83,-79,-76,-76,-77,-77,-209,-205,-271,-277,-359,-348,-314,-177,-244,-138,-191,-191,-181,-97,-124,-127,-127,-127,-126,-92,-216,-220,-203,-187,-164,-93,-145,-56,-59,-56,-56,-56,-64,-70,-600,-277,-786,-779,-29960,-29963,-757,-695,-29960,-29966,-29966,-29967,-29968,-29969,-29968,-29968,-29958,-9116]} 1. d4 {[%emt 0:00:03]} Nf6 {[%emt 0:00:11]} 2. c4 {[%emt 0:00:05]} e6 {[%emt 0:00:16]} 3. Nf3 {[%emt 0:00:07]} d5 {[%emt 0:00:34]} 4. Nc3 {[%emt 0:00:09]} c6 {[%emt 0:01:31]} 5. g3 {[%emt 0:04:30]} Be7 {[%emt 0:06:52]} 6. Bg2 {[%emt 0:00:06]} O-O {[%emt 0:00:22]} 7. O-O {[%emt 0:01:39]} a5 {[%emt 0:00:22] E06: Closed Catalan: Early deviations.} 8. Re1 {[%emt 0:03:54]} b6 {[%emt 0:02:17]} 9. Ne5 {[%emt 0:06:20]} Nfd7 {[%emt 0:04:55]} 10. Nxd7 {[%emt 0:16:22]} Nxd7 {[%emt 0:01:12][%cal Bb8d7,Bd7f6,Bf6e8,Be8c7][%mdl 32]} 11. cxd5 $146 {[%emt 0:01:23]} ({Predecessor:} 11. e4 dxc4 12. e5 Ba6 13. Qg4 Re8 14. Bh6 Bf8 15. Ne4 Rc8 16. h4 Kh8 17. Bg5 {0-1 Arndt,M (2384)-Lubbe,N (2479) GER-ch Rapid 48th 2022 (3)}) 11... cxd5 {[%emt 0:06:21]} 12. e4 {[%emt 0:01:04]} Nf6 {[%emt 0:03:36]} 13. e5 {[%emt 0:06:13]} Ne8 {[%emt 0:05:28]} 14. f4 {[%emt 0:10:45][%cal Of4f5]} Nc7 {[%emt 0:00:35]} 15. Qb3 {[%emt 0:01:58]} Rb8 {[%emt 0:01:31]} 16. a4 {[%emt 0:10:21]} Bd7 {[%emt 0:12:31]} 17. Bd2 {[%emt 0:04:53]} b5 {[%emt 0:19:27]} 18. axb5 {[%emt 0:01:08]} Nxb5 {[%emt 0:00:14]} 19. Nxb5 {[%emt 0:00:05]} Rxb5 {[%emt 0:00:06]} 20. Qc2 {[%emt 0:04:38]} Bb4 {[%emt 0:04:57]} 21. Bf1 {[%emt 0:02:15] [#]} (21. Bc3 $11) 21... Bxd2 $1 $17 {[%emt 0:00:42]} 22. Bxb5 {[%emt 0:03:03]} Bxe1 {[%emt 0:01:33]} 23. Bxd7 {[%emt 0:00:03]} Qxd7 {[%emt 0:01:53]} 24. Rxe1 {[%emt 0:00:05][%mdl 4096] Endgame. KQR-KQR} Rc8 {[%emt 0:02:51]} 25. Qd2 {[%emt 0:01:18]} Qa4 {[%emt 0:00:11]} 26. Qd3 {[%emt 0:19:04]} (26. Qd1 $17 {was called for.} Qb4 27. Re2) 26... Rc2 $1 $19 {[%emt 0:08:06][%cal Oh7h5]} 27. Rb1 {[%emt 0:00:33]} h5 {[%emt 0:02:53]} 28. Kh1 {[%emt 0:00:42]} Qc4 {[%emt 0:06:43]} 29. Qxc4 {[%emt 0:00:07]} Rxc4 {[%emt 0:00:04] KR-KR} (29... dxc4 $142 30. Kg1 Kh7) 30. Rd1 {[%emt 0:00:55]} (30. b3 $142 Rxd4 31. Ra1) 30... Rc2 {[%emt 0:00:29]} ({Better is} 30... a4 $19 {Threatens to win with ...Kh7.} 31. Kg2 Rc2+ 32. Kh3 Rxb2) 31. Ra1 {[%emt 0:00:09]} (31. b3 $17) 31... Rxb2 {[%emt 0:00:08]} 32. Rxa5 {[%emt 0:00:03] [#]} Rb4 {[%emt 0:00:04]} (32... h4 $1 $19 33. gxh4 Rf2) 33. f5 {[%emt 0:00:26]} Rxd4 {[%emt 0:02:53] White must now prevent ...Re4.} 34. Ra8+ {[%emt 0:00:04]} Kh7 {[%emt 0:00:03] ...Rd1+ is the strong threat.} 35. fxe6 {[%emt 0:00:02]} fxe6 {[%emt 0:00:05]} 36. Re8 {[%emt 0:00:09] [#]} Kg6 $1 {[%emt 0:00:34] Strongly threatening ...Kf5.} 37. Rxe6+ {[%emt 0:00:03]} Kf5 {[%emt 0:00:03]} 38. Re7 {[%emt 0:00:39]} g6 {[%emt 0:00:07]} (38... g5 $19 {Hoping for ...Re4.} 39. Kg2 Rd2+ 40. Kf1 Rxh2) 39. Kg2 $17 {[%emt 0:00:51]} Re4 {[%emt 0:00:34]} (39... Rd2+ $17 40. Kg1 Rd4) 40. Kf3 $15 {[%emt 0:01:38]} Rxe5 {[%emt 0:00:06]} 41. Rf7+ {[%emt 0:32:21]} Ke6 {[%emt 0:30:31]} 42. Rg7 {[%emt 0:00:08]} g5 {[%emt 0:03:55]} 43. Ra7 $2 {[%emt 0:00:00][%mdl 8192]} (43. Rg8 $15) 43... Kf5 {[%emt 0:00:00]} (43... g4+ $142 44. Kf4 Re4+ 45. Kg5 Re5+ 46. Kf4 Re4+ 47. Kg5 Kd6 (47... Re5+ 48. Kf4 $15) 48. Kxh5 d4) 44. h3 $2 {[%emt 0:00:00]} (44. Rf7+ Ke6 45. Ra7) 44... g4+ $19 {[%emt 0:00:00]} 45. hxg4+ {[%emt 0:00:00]} hxg4+ {[%emt 0:00:00]} 46. Kf2 {[%emt 0:00:00]} Re4 {[%emt 0:00:00] ( -> ...Ke5)} 47. Ra8 {[%emt 0:00:00]} Ke5 {[%emt 0:00:00]} 48. Ra5 {[%emt 0:00:00]} Kd4 {[%emt 0:00:00]} 49. Ra4+ {[%emt 0:00:00]} Kd3 {[%emt 0:00:00]} 50. Ra3+ {[%emt 0:00:00]} Kc2 {[%emt 0:00:00]} 51. Ra2+ {[%emt 0:00:00]} Kb3 {[%emt 0:00:00]} 0-1

[Event "Mitropa Cup Open 2024"]
[Site "Apolda"]
[Date "2024.02.19"]
[Round "5.1"]
[White "Girel, Joseph"]
[Black "Krstulovic, Alex"]
[Result "0-1"]
[ECO "C18"]
[WhiteElo "2492"]
[BlackElo "2414"]
[Annotator "TA"]
[PlyCount "56"]
[EventDate "2024.02.15"]
[EventType "team-tourn"]
[EventCountry "GER"]
[SourceTitle "playchess.com"]
[Source "ChessBase"]
[SourceQuality "1"]
[WhiteTeam "France"]
[BlackTeam "Hungary"]
[WhiteTeamCountry "FRA"]
[BlackTeamCountry "HUN"]
[TimeControl "40/5400+30:1800+30"]

{[%evp 17,56,36,23,0,11,6,16,14,11,12,87,29,22,26,20,34,31,20,27,-36,-37,-33,-34,-130,-138,-225,-232,-204,-162,-162,-161,-162,-166,-900,-877,-941,-642,-1108,-1077,-1145,-968]} 1. e4 {[%emt 0:00:14]} e6 {[%emt 0:00:03]} 2. d4 {[%emt 0:00:24]} d5 {[%emt 0:00:06]} 3. Nc3 {[%emt 0:01:47]} Bb4 {[%emt 0:01:08]} 4. e5 {[%emt 0:02:04]} c5 {[%emt 0:00:36]} 5. a3 {[%emt 0:00:07]} Ba5 {[%emt 0:00:06]} 6. b4 {[%emt 0:00:23]} cxd4 {[%emt 0:00:10]} 7. Nb5 {[%emt 0:00:11]} Bc7 {[%emt 0:00:25]} 8. f4 {[%emt 0:00:10]} Bd7 {[%emt 0:00:50]} 9. Nxc7+ {[%emt 0:00:07]} Qxc7 {[%emt 0:00:06]} 10. a4 {[%emt 0:00:19][%cal Of1d3]} Ne7 {[%emt 0:05:30]} 11. Nf3 {[%emt 0:05:23][%cal Of1d3][%mdl 1024] White has compensation.} Nbc6 {[%emt 0:08:38]} 12. Bd2 {[%emt 0:00:16] The position is equal.} O-O {[%emt 0:20:50]} 13. Bd3 {[%emt 0:14:55]} f6 {[%emt 0:02:25] [#]} (13... Nf5 $11 {remains equal.}) 14. b5 {[%emt 0:07:57]} (14. O-O $1 $16) 14... Nxe5 $11 {[%emt 0:08:47]} 15. fxe5 {[%emt 0:03:27]} fxe5 {[%emt 0:00:02][%cal Bf6e5,Be5e4][%mdl 32] aiming for ...e4.} 16. Bb4 {[%emt 0:08:17]} Rae8 {[%emt 0:02:30]} 17. O-O $1 {[%emt 0:10:01]} e4 {[%emt 0:08:31]} 18. Nxd4 {[%emt 0:10:25]} ({Better is} 18. Ng5 $1 $11 Rxf1+ 19. Bxf1) 18... exd3 $15 {[%emt 0:05:11]} 19. Rxf8+ {[%emt 0:00:13]} Kxf8 {[%emt 0:00:43]} 20. Qh5 {[%emt 0:10:37] [#]} (20. cxd3 $15 Kg8 21. Qc1 Qxc1+ 22. Rxc1) 20... Kg8 $1 $17 {[%emt 0:00:48]} (20... dxc2 $2 {perishes.} 21. Nxe6+ (21. Qxh7 $2 c1=Q+ 22. Rxc1 Qxc1+ $19) 21... Kg8 22. Nxc7 $18) 21. Nxe6 {[%emt 0:06:38]} (21. cxd3 $17 {might work better.} Qb6 22. Qe5) 21... Qb6+ $19 {[%emt 0:01:42]} ({Not} 21... Qxc2 22. Rf1 g6 23. Qe5 $11) 22. Nc5 {[%emt 0:00:09]} a5 {[%emt 0:02:18]} 23. Ba3 {[%emt 0:04:15]} dxc2 {[%emt 0:06:16]} 24. Rc1 {[%emt 0:06:13]} Nf5 {[%emt 0:08:51]} 25. Kh1 $2 {[%emt 0:04:05]} (25. Rxc2 Re1+ 26. Kf2) 25... Qd6 {[%emt 0:02:57] ...Re3 would now be deadly. Black is clearly winning.} 26. Qg5 {[%emt 0:02:57]} b6 {[%emt 0:04:07]} 27. Ne4 {[%emt 0:00:52]} Qe5 {[%emt 0:01:15]} 28. Nd2 {[%emt 0:01:03]} Qc3 {[%emt 0:00:08] Weighted Error Value: White=0.89/Black=0.37.  Mistake:       	White=5     	Black=1      OK:         	White=6     	Black=6      Best:        	White=1     	Black=3      Strong:       	White=1     	Black=1} 0-1

[Event "Mitropa Cup Open 2024"]
[Site "Apolda"]
[Date "2024.02.19"]
[Round "5.2"]
[White "Juhasz, Agoston"]
[Black "Makkar, Rajat"]
[Result "1-0"]
[ECO "C44"]
[WhiteElo "2410"]
[BlackElo "2453"]
[Annotator "TA"]
[PlyCount "77"]
[EventDate "2024.02.15"]
[EventType "team-tourn"]
[EventCountry "GER"]
[SourceTitle "playchess.com"]
[Source "ChessBase"]
[SourceQuality "1"]
[WhiteTeam "Hungary"]
[BlackTeam "France"]
[WhiteTeamCountry "HUN"]
[BlackTeamCountry "FRA"]
[TimeControl "40/5400+30:1800+30"]

{[%evp 16,77,0,-14,0,-4,-9,-13,14,19,49,48,39,-9,0,0,9,0,8,0,0,0,6,0,0,0,38,0,5,0,36,0,0,0,0,0,51,49,96,-6,0,-112,-100,-104,0,0,109,105,113,108,572,0,0,-411,0,0,285,283,5214,5214,29994,29995,29997,29998]} 1. e4 {[%emt 0:00:05]} e5 {[%emt 0:00:10]} 2. Nf3 {[%emt 0:00:07]} Nc6 {[%emt 0:00:07]} 3. d4 {[%emt 0:00:44]} exd4 {[%emt 0:00:24]} 4. Bc4 {[%emt 0:00:31]} Bc5 {[%emt 0:00:28]} 5. Ng5 {[%emt 0:00:50]} Nh6 {[%emt 0:07:52]} 6. Nxf7 {[%emt 0:01:06]} Nxf7 {[%emt 0:00:34]} 7. Bxf7+ {[%emt 0:00:06]} Kxf7 {[%emt 0:00:09]} 8. Qh5+ {[%emt 0:00:05]} g6 {[%emt 0:02:13]} 9. Qxc5 {[%emt 0:00:09]} d6 {[%emt 0:01:48]} 10. Qc4+ {[%emt 0:01:17]} Be6 {[%emt 0:01:12]} 11. Qe2 {[%emt 0:00:27]} Kg7 {[%emt 0:12:07] The position is equal.} 12. O-O {[%emt 0:06:20]} Rf8 {[%emt 0:01:46]} 13. c3 {[%emt 0:18:21]} Ne5 {[%emt 0:05:47]} 14. Nd2 {[%emt 0:07:57] Wards off Bc4} (14. b3 $14 {feels stronger.} d3 15. Qe3) 14... dxc3 $11 {[%emt 0:04:13]} 15. bxc3 {[%emt 0:00:26]} Qh4 {[%emt 0:02:03]} 16. c4 {[%emt 0:04:38]} Kg8 {[%emt 0:04:49]} 17. Bb2 {[%emt 0:05:26][%cal Oc4c5]} Qg5 {[%emt 0:01:31]} 18. Kh1 {[%emt 0:05:10]} Rf7 {[%emt 0:14:07]} 19. Rac1 {[%emt 0:11:47]} Raf8 {[%emt 0:01:17][%cal Oe5d3] Hoping for ...Nd3!} 20. f3 {[%emt 0:04:43]} c5 {[%emt 0:04:39]} 21. a3 {[%emt 0:07:31]} h5 {[%emt 0:03:47]} 22. Rg1 {[%emt 0:10:03]} h4 {[%emt 0:03:56]} 23. Nf1 {[%emt 0:00:39]} h3 {[%emt 0:03:27]} 24. Ne3 {[%emt 0:00:52] Against Bg4} Kh7 {[%emt 0:05:36][%cal Oe5g4]} 25. Rcf1 {[%emt 0:05:20]} Nc6 {[%emt 0:03:30]} (25... hxg2+ $11 26. Rxg2 Qh5 27. Bxe5 Qxe5) 26. gxh3 $14 {[%emt 0:02:27]} Qh5 {[%emt 0:00:04]} (26... Qh6 $1 $14 {might be stronger.}) 27. Ng4 {[%emt 0:01:48]} ({White should try} 27. Rg3 $1 $16) 27... Na5 $11 {[%emt 0:06:28]} 28. Qd1 {[%emt 0:02:12]} (28. Rd1 $11 Nxc4 (28... Qxh3 $2 29. Rg3 $18) 29. Rg3) 28... Nxc4 $17 {[%emt 0:01:19]} (28... Qxh3 $6 29. Rg3 (29. Qxd6 $2 Bxg4 30. Qg3 Qxg3 $19) 29... Qh5 30. Nf6+ (30. Qxd6 Bxg4 31. Rxg4 Qxg4 $11) 30... Rxf6 31. Bxf6 Rxf6 32. Qxd6 $11) 29. Bc1 {[%emt 0:00:42]} Qxh3 {[%emt 0:01:42]} (29... d5 $1 $17 {Strongly threatening ...dxe4.} 30. Qd3 b5 (30... Qxh3 31. Rg3 $17)) 30. f4 $11 {[%emt 0:00:52]} Ne5 {[%emt 0:01:49]} 31. Nxe5 $16 {[%emt 0:01:49]} (31. Rg3 Qh4 32. f5 gxf5) 31... dxe5 {[%emt 0:00:57] [#]} 32. f5 {[%emt 0:00:03] Dancing on a razor blade.} gxf5 {[%emt 0:03:52][%mdl 8192]} (32... Rd7 $16 33. Rf3 (33. fxg6+ Kg7 $15) 33... Qh5) 33. Rf3 $2 {[%emt 0:01:07]} ({White has to play} 33. Rg5 $18 {And now Rh5+ would win.} Rd7 (33... fxe4 $2 34. Rh5+ Kg8 35. Rg1+ Rg7 36. Rxg7+ Kxg7 37. Bh6+ Kf6 38. Rxh3 $18) 34. Rh5+ Kg7 35. Qxd7+ (35. Rxh3 Rxd1 36. Rxd1 f4 $18) 35... Bxd7 36. Rxh3) 33... Qh4 $11 {[%emt 0:00:55]} 34. Bg5 $2 {[%emt 0:01:12][%mdl 8192]} (34. Qe1 $11 Qxe4 35. Qg3) 34... Qh5 $2 {[%emt 0:01:22]} ({Better is} 34... Qxe4 $19 35. Re1 Qd5) 35. Be3 $40 {[%emt 0:00:36][%mdl 128] Rfg3 would now be deadly. White is up to no good.} (35. Bd2 $5 Qh4 $8 (35... fxe4 $2 {is the wrong capture.} 36. Rf4 $18) 36. Rfg3 $11) 35... fxe4 $2 {[%emt 0:00:34][%mdl 8192] [#]} (35... Kh8 $11 {and Black has nothing to worry.} 36. Rg5 Qh4) 36. Rf6 $1 $18 {[%emt 0:00:22]} Qh4 {[%emt 0:01:14]} (36... Bg4 37. Rxg4 (37. Qxg4 Qxg4 38. Rxf7+ Rxf7 $18) 37... Rxf6 38. Rg7+ (38. Bxc5 {gets mated.} Rf1+) 38... Kxg7 39. Qxh5 Rf1+ 40. Kg2 R1f5 41. Qg4+ Kh7 42. Qxe4 b6) 37. Rxe6 {[%emt 0:00:31][%cal Od1d6] Qd6! would kill now.} Rf6 {[%emt 0:00:39]} 38. Rxf6 {[%emt 0:00:27]} Rxf6 {[%emt 0:00:05]} 39. Qd7+ {[%emt 0:00:06] Weighted Error Value: White=0.54/Black=0.72.  Loses game:     	White=1     	Black=2      Missed win:     	White=1     	Black=1      Mistake:       	White=3     	Black=5      Inaccurate:     	White=2     	Black=5      OK:         	White=12    	Black=7      Best:        	White=1     	Black=1      Strong:       	White=1     	---} 1-0

[Event "Mitropa Cup Open 2024"]
[Site "Apolda"]
[Date "2024.02.19"]
[Round "5.3"]
[White "Velten, Paul"]
[Black "Vanczak, Tamas"]
[Result "1-0"]
[ECO "B55"]
[WhiteElo "2470"]
[BlackElo "2431"]
[Annotator "TA"]
[PlyCount "63"]
[EventDate "2024.02.15"]
[EventType "team-tourn"]
[EventCountry "GER"]
[SourceTitle "playchess.com"]
[Source "ChessBase"]
[SourceQuality "1"]
[WhiteTeam "France"]
[BlackTeam "Hungary"]
[WhiteTeamCountry "FRA"]
[BlackTeamCountry "HUN"]
[TimeControl "40/5400+30:1800+30"]

{[%evp 13,63,43,32,39,30,28,37,27,43,50,61,29,20,29,46,9,63,77,67,40,47,43,52,40,27,32,27,33,37,27,32,0,18,0,0,0,22,20,152,174,252,254,244,242,700,700,1038,1011,1670,1656,1514,1436]} 1. e4 {[%emt 0:00:44]} c5 {[%emt 0:00:46]} 2. Nf3 {[%emt 0:01:14]} d6 {[%emt 0:00:40]} 3. d4 {[%emt 0:00:54]} cxd4 {[%emt 0:00:07]} 4. Nxd4 {[%emt 0:01:24]} Nf6 {[%emt 0:00:06]} 5. f3 {[%emt 0:01:45]} a6 {[%emt 0:04:43]} 6. c4 {[%emt 0:03:02]} e6 {[%emt 0:00:15]} 7. Nc3 {[%emt 0:00:44]} Be7 {[%emt 0:00:37]} 8. Be3 {[%emt 0:01:17]} O-O {[%emt 0:00:45]} 9. Qc2 {[%emt 0:02:12]} Qc7 {[%emt 0:01:11]} 10. O-O-O {[%emt 0:08:02] White is slightly better.} Bd7 {[%emt 0:04:40]} 11. g4 {[%emt 0:01:34][%cal Bg2g4,Bg4g5][%mdl 32]} Nc6 {[%emt 0:04:01]} 12. g5 {[%emt 0:02:43]} (12. Nxc6 $5 bxc6 13. h4 $14) 12... Nxd4 {[%emt 0:03:01]} 13. Rxd4 {[%emt 0:17:47]} Nh5 {[%emt 0:02:49]} 14. Kb1 {[%emt 0:05:29]} Rfc8 {[%emt 0:07:04]} (14... f6 $11) 15. Qd2 $14 {[%emt 0:03:34][%cal Oe4e5]} Bc6 {[%emt 0:03:00]} 16. Bh3 {[%emt 0:01:01]} b5 {[%emt 0:10:00]} 17. Bg4 {[%emt 0:03:05]} g6 {[%emt 0:00:34]} 18. Rc1 {[%emt 0:05:35][%cal Oc3d5]} Qb7 {[%emt 0:11:54]} 19. cxb5 {[%emt 0:01:43]} axb5 {[%emt 0:03:58]} 20. a3 {[%emt 0:00:41]} Rd8 {[%emt 0:05:55]} 21. Bxh5 {[%emt 0:00:59]} gxh5 {[%emt 0:00:07]} 22. Qc2 {[%emt 0:23:04][%cal Oc3d5]} Bd7 {[%emt 0:17:27]} 23. Qb3 {[%emt 0:01:11]} Rdc8 {[%emt 0:06:16]} 24. Rcd1 {[%emt 0:01:45]} Qa6 {[%emt 0:01:18][%cal Od6d5]} 25. Qb4 {[%emt 0:02:04]} Rc6 {[%emt 0:05:13] [#]} (25... Bc6 $11) 26. e5 $1 $16 {[%emt 0:02:12] White is more active.} (26. Nxb5 $2 Rb6 27. Nc7 (27. Rxd6 $2 Bxd6 28. Rxd6 Rxd6 $19) 27... Rxb4 $19) 26... Rxc3 {[%emt 0:01:22]} (26... dxe5 $2 27. Qxe7 exd4 28. Bxd4 $18) (26... Bf8 $142 27. exd6 (27. Nxb5 $2 Rb8 $19) 27... e5) 27. Qxc3 $18 {[%emt 0:00:17]} ({Resist} 27. bxc3 $6 Bf8 $16) 27... d5 {[%emt 0:00:04][%cal Ob5b4] [#]} 28. Qd3 $1 {[%emt 0:01:58]} Qb7 $2 {[%emt 0:03:28]} (28... Bc8 29. Rh4 b4) 29. Rh4 {[%emt 0:01:24] White is clearly winning.} Be8 {[%emt 0:00:36]} 30. Rg1 {[%emt 0:00:23]} Kh8 {[%emt 0:00:31]} 31. Rxh5 {[%emt 0:00:25][%csl Gh5][%cal Rd3h7]} f5 {[%emt 0:00:24]} 32. g6 {[%emt 0:00:17] Weighted Error Value: White=0.08 (flawless) /Black=0.47.  Mistake:       	---       	Black=4      Inaccurate:     	White=4     	Black=1      OK:         	White=3     	Black=6      Best:        	White=2     	---        Strong:       	White=1     	---} 1-0

[Event "Mitropa Cup Open 2024"]
[Site "Apolda"]
[Date "2024.02.19"]
[Round "5.4"]
[White "Pasztor, Balazs"]
[Black "Decuigniere, Tom"]
[Result "1-0"]
[ECO "B12"]
[WhiteElo "2395"]
[BlackElo "2401"]
[Annotator "RC"]
[PlyCount "49"]
[EventDate "2024.02.15"]
[EventType "team-tourn"]
[EventCountry "GER"]
[SourceTitle "playchess.com"]
[Source "ChessBase"]
[SourceQuality "1"]
[WhiteTeam "Hungary"]
[BlackTeam "France"]
[WhiteTeamCountry "HUN"]
[BlackTeamCountry "FRA"]
[TimeControl "40/5400+30:1800+30"]

1. e4 {[%emt 0:00:03]} c6 {[%emt 0:00:04]} 2. d4 {[%emt 0:00:05]} d5 {[%emt 0:00:04]} 3. e5 {[%emt 0:00:08]} Bf5 {[%emt 0:00:04]} 4. h4 {[%emt 0:00:18]} h5 {[%emt 0:01:20]} 5. Bd3 {[%emt 0:00:09]} Bxd3 {[%emt 0:00:05]} 6. Qxd3 {[%emt 0:00:07]} e6 {[%emt 0:01:21]} 7. Nf3 {[%emt 0:00:09]} Qa5+ {[%emt 0:00:25]} 8. Nbd2 {[%emt 0:00:08]} Qa6 {[%emt 0:01:16]} 9. c4 {[%emt 0:00:23]} Nh6 {[%emt 0:01:20]} 10. O-O {[%emt 0:00:46]} Nf5 {[%emt 0:00:32]} 11. b3 {[%emt 0:00:35]} Qa5 {[%emt 0:14:25]} 12. Rd1 {[%emt 0:11:14]} Be7 {[%emt 0:01:03]} 13. g3 {[%emt 0:06:23]} Na6 {[%emt 0:03:20]} 14. Nf1 {[%emt 0:04:06]} Rd8 {[%emt 0:01:42]} 15. Bd2 {[%emt 0:06:27]} Qa3 {[%emt 0:04:15]} 16. Bc1 {[%emt 0:09:39]} Qa5 {[%emt 0:00:39]} 17. Ne3 {[%emt 0:02:34]} Nxe3 {[%emt 0:03:30]} 18. Bxe3 {[%emt 0:01:42]} c5 {[%emt 0:04:53]} 19. Bg5 {[%emt 0:05:06]} dxc4 {[%emt 0:08:28]} 20. Qxc4 {[%emt 0:02:03]} Bxg5 {[%emt 0:10:58]} 21. Nxg5 {[%emt 0:01:43]} Qb4 {[%emt 0:00:07]} 22. Qe2 {[%emt 0:05:28]} cxd4 {[%emt 0:02:30]} 23. Rac1 {[%emt 0:05:33]} g6 {[%emt 0:02:15]} 24. Rc4 {[%emt 0:01:35]} Qb5 {[%emt 0:02:07]} 25. Rcxd4 {[%emt 0:00:55]} 1-0